fUST/lending_fUST_20250114
["ID","MTS","AMOUNT","RATE_DAILY","PERIOD"]
[348896325,1736863853725,-624.24,0.00022602,3]
[348896326,1736863853734,-500.0,0.00022602,3]
[348896327,1736863853745,-500.0,0.00022602,3]
[348896328,1736863853755,-500.0,0.00022602,3]
[348896329,1736863853765,-382.71604901,0.00022602,3]
[348896330,1736863853775,-500.0,0.00022602,3]
[348896331,1736863853784,-500.0,0.00022602,3]
[348896332,1736863853793,-555.47,0.00022602,3]
[348896333,1736863853804,-500.0,0.00022602,3]
[348896334,1736863853814,-500.0,0.00022602,3]
[348896335,1736863853823,-500.0,0.00022602,3]
[348896336,1736863853833,-500.0,0.00022602,3]
[348896337,1736863853842,-448.86982627,0.00022602,3]
[348896338,1736863853851,-500.0,0.00022602,3]
[348896339,1736863853861,-500.0,0.00022602,3]
[348896340,1736863853870,-648.6,0.00022602,3]
[348896341,1736863853879,-976.54,0.00022602,3]
[348896342,1736863853889,-649.03399712,0.00022602,3]
[348896343,1736863853898,-500.0,0.00022602,3]
[348896344,1736863853907,-800.75,0.00022602,3]
[348896345,1736863853917,-500.0,0.00022602,3]
[348896346,1736863853926,-602.56,0.00022602,3]
[348896347,1736863853936,-500.0,0.00022602,3]
[348896348,1736863853945,-500.0,0.00022602,3]
[348896349,1736863853955,-500.0,0.00022602,3]
[348896350,1736863853964,-666.37,0.00022602,3]
[348896351,1736863853973,-1167.65,0.00022602,3]
[348896352,1736863853983,-500.0,0.00022602,3]
[348896353,1736863853992,-905.35,0.00022602,3]
[348896354,1736863854001,-500.0,0.00022602,3]
[348896355,1736863854011,-500.0,0.00022602,3]
[348896356,1736863854020,-1155.85,0.00022602,3]
[348896357,1736863854030,-862.62,0.00022602,3]
[348896358,1736863854039,-500.0,0.00022602,3]
[348896359,1736863854048,-513.95935793,0.00022602,3]
[348896360,1736863854058,-798.75,0.00022602,3]
[348896361,1736863854068,-1111.58,0.00022602,3]
[348896362,1736863854077,-500.0,0.00022602,3]
[348896363,1736863854087,-500.0,0.00022602,3]
[348896364,1736863854096,-938.24,0.00022602,3]
[348896365,1736863854106,-500.0,0.00022602,3]
[348896366,1736863854116,-500.0,0.00022602,3]
[348896367,1736863854126,-501.06,0.00022602,3]
[348896368,1736863854135,-500.0,0.00022602,3]
[348896369,1736863854145,-500.0,0.00022602,3]
[348896370,1736863854155,-500.0,0.00022602,3]
[348896371,1736863854164,-500.0,0.00022602,3]
[348896372,1736863854173,-683.74,0.00022602,3]
[348896373,1736863854182,-612.28,0.00022602,3]
[348896374,1736863854191,-500.0,0.00022602,3]
[348896375,1736863854201,-500.0,0.00022602,3]
[348896376,1736863854210,-500.0,0.00022602,3]
[348896377,1736863854219,-639.85,0.00022602,3]
[348896378,1736863854228,-849.75,0.00022602,3]
[348896379,1736863854238,-848.14,0.00022602,3]
[348896380,1736863854247,-646.88,0.00022602,3]
[348896381,1736863854257,-500.0,0.00022602,3]
[348896382,1736863854266,-481.28177495,0.00022602,3]
[348896383,1736863854276,-765.36,0.00022602,3]
[348896384,1736863854285,-500.0,0.00022602,3]
[348896385,1736863854294,-888.92,0.00022602,3]
[348896386,1736863854304,-500.0,0.00022602,3]
[348896387,1736863854313,-500.0,0.00022602,3]
[348896388,1736863854327,-2567.75,0.00022602,3]
[348896389,1736863854337,-500.0,0.00022602,3]
[348896390,1736863854346,-500.0,0.00022602,3]
[348896391,1736863854355,-500.0,0.00022602,3]
[348896392,1736863854365,-500.0,0.00022602,3]
[348896393,1736863854374,-500.0,0.00022602,3]
[348896394,1736863854383,-629.41,0.00022602,3]
[348896395,1736863854394,-500.0,0.00022602,3]
[348896396,1736863854403,-500.0,0.00022602,3]
[348896397,1736863854412,-1413.47,0.00022602,3]
[348896398,1736863854421,-500.0,0.00022602,3]
[348896399,1736863854431,-584.19,0.00022602,3]
[348896400,1736863854440,-500.0,0.00022602,3]
[348896401,1736863854449,-1126.87,0.00022602,3]
[348896402,1736863854459,-500.0,0.00022602,3]
[348896403,1736863854468,-500.0,0.00022602,3]
[348896404,1736863854478,-505.27,0.00022602,3]
[348896405,1736863854487,-500.0,0.00022602,3]
[348896406,1736863854497,-616.16,0.00022602,3]
[348896407,1736863854506,-1118.88,0.00022602,3]
[348896408,1736863854516,-783.08,0.00022602,3]
[348896409,1736863854525,-500.0,0.00022602,3]
[348896410,1736863854535,-500.0,0.00022602,3]
[348896411,1736863854544,-605.0,0.00022602,3]
[348896412,1736863854554,-1009.28,0.00022602,3]
[348896413,1736863854563,-458.10302435,0.00022602,3]
[348896414,1736863854572,-6485.76,0.00022602,3]
[348896415,1736863854581,-500.0,0.00022602,3]
[348896416,1736863854591,-1690.57,0.00022602,3]
[348896417,1736863854600,-740.18,0.00022602,3]
[348896418,1736863854609,-500.0,0.00022602,3]
[348896419,1736863854619,-500.0,0.00022602,3]
[348896420,1736863854628,-500.0,0.00022602,3]
[348896421,1736863854637,-512.12,0.00022602,3]
[348896422,1736863854647,-500.0,0.00022602,3]
[348896423,1736863854656,-1010.0,0.00022602,3]
[348896424,1736863854666,-216.22824659,0.00022602,3]
[348896425,1736863854675,-500.0,0.00022602,3]
[348896426,1736863854685,-500.0,0.00022602,3]
[348896427,1736863854694,-1299.63,0.00022602,3]
[348896428,1736863854703,-500.0,0.00022602,3]
[348896429,1736863854713,-3768.06,0.00022602,3]
[348896430,1736863854722,-500.0,0.00022602,3]
[348896431,1736863854731,-1342.06,0.00022602,3]
[348896432,1736863854741,-500.0,0.00022602,3]
[348896433,1736863854750,-1128.92,0.00022602,3]
[348896434,1736863854760,-500.0,0.00022602,3]
[348896435,1736863854865,-27073.49,0.00022602,2]
[348896436,1736863854888,-500.0,0.00022602,3]
[348896437,1736863854898,-500.0,0.00022602,3]
[348896438,1736863854908,-500.0,0.00022602,3]
[348896439,1736863854917,-692.16,0.00022602,3]
[348896440,1736863854926,-500.0,0.00022602,3]
[348896441,1736863854936,-556.21,0.00022602,3]
[348896442,1736863854945,-500.0,0.00022602,3]
[348896443,1736863854955,-43318.87,0.00022602,3]
[348896444,1736863854965,-524.51,0.00022602,3]
[348896445,1736863854974,-5131.51,0.00022602,2]
[348896446,1736863854984,-1130.32,0.00022602,3]
[348896447,1736863854994,-1994.39,0.00022602,3]
[348896448,1736863855004,-6448.84,0.00022602,3]
[348896449,1736863855013,-677.78,0.00022602,3]
[348896450,1736863855023,-1029.24,0.00022602,3]
[348896451,1736863855032,-210.43564776,0.00022602,3]
[348896452,1736863855042,-500.0,0.00022602,3]
[348896453,1736863855051,-2401.3,0.00022602,3]
[348896454,1736863855061,-4537.12,0.00022602,3]
[348896455,1736863855070,-584.62,0.00022602,3]
[348896456,1736863855079,-500.0,0.00022602,3]
[348896457,1736863855089,-357.02276288,0.00022602,3]
[348896458,1736863855098,-590.75,0.00022602,3]
[348896459,1736863855107,-2305.5,0.00022602,3]
[348896460,1736863855117,-1523.5,0.00022602,3]
[348896461,1736863855126,-500.0,0.00022602,3]
[348896462,1736863855135,-603.8,0.00022602,3]
[348896463,1736863855145,-697.89,0.00022602,3]
[348896464,1736863855155,-1865.8,0.00022602,3]
[348896465,1736863855164,-621.15,0.00022602,3]
[348896466,1736863855173,-501.99,0.00022602,3]
[348896467,1736863855183,-500.0,0.00022602,3]
[348896468,1736863855193,-500.0,0.00022602,3]
[348896469,1736863855203,-505.26,0.00022602,3]
[348896470,1736863855212,-2086.44,0.00022602,3]
[348896471,1736863855221,-4296.9,0.00022602,3]
[348896472,1736863855231,-500.0,0.00022602,3]
[348896473,1736863855240,-500.0,0.00022602,3]
[348896474,1736863855249,-500.0,0.00022602,3]
[348896475,1736863855259,-500.0,0.00022602,3]
[348896476,1736863855268,-500.0,0.00022602,3]
[348896477,1736863855277,-877.71,0.00022602,3]
[348896478,1736863855286,-577.59,0.00022602,3]
[348896479,1736863855296,-861.39,0.00022602,3]
[348896480,1736863855305,-2059.6,0.00022602,3]
[348896481,1736863855317,-500.0,0.00022602,3]
[348896482,1736863855327,-184.16342285,0.00022602,3]
[348896483,1736863855336,-503.44,0.00022602,3]
[348896484,1736863855345,-4048.51,0.00022602,3]
[348896485,1736863855355,-500.0,0.00022602,3]
[348896486,1736863855364,-1704.95,0.00022602,3]
[348896487,1736863855373,-10053.83,0.00022602,3]
[348896488,1736863855383,-500.0,0.00022602,3]
[348896489,1736863855392,-1016.39,0.00022602,3]
[348896490,1736863855404,-2597.05,0.00022602,3]
[348896491,1736863855414,-1849.84,0.00022602,3]
[348896492,1736863855424,-1738.98,0.00022602,3]
[348896493,1736863855433,-500.0,0.00022602,3]
[348896494,1736863855442,-699.13,0.00022602,3]
[348896495,1736863855451,-500.0,0.00022621,2]
[348896496,1736863855460,-506.01387431,0.00022621,2]
[348896497,1736863855470,-957.42317623,0.00022659,2]
[348896498,1736863855479,-1000.0,0.00022721,2]
[348896499,1736863855488,-544.32877917,0.00022721,2]
[348896500,1736863855497,-252.797,0.00022721,2]
[348896501,1736863855506,-500.0,0.00022721,2]
[348896502,1736863855516,-1000.0,0.00022721,2]
[348896503,1736863855525,-500.0,0.00022739,3]
[348896504,1736863855534,-500.0,0.00022739,3]
[348896505,1736863855543,-556.23998529,0.00022739,3]
[348896506,1736863855553,-500.0,0.00022739,3]
[348896507,1736863855562,-10661.45,0.00022739,3]
[348896508,1736863855571,-500.0,0.00022739,3]
[348896509,1736863855581,-500.0,0.00022739,3]
[348896510,1736863855590,-624.24,0.00022739,3]
[348896511,1736863855600,-500.0,0.00022739,3]
[348896512,1736863855610,-500.0,0.00022739,3]
[348896513,1736863855619,-500.0,0.00022739,3]
[348896514,1736863855628,-500.0,0.00022739,3]
[348896515,1736863855637,-500.0,0.00022739,3]
[348896516,1736863855647,-555.47,0.00022739,3]
[348896517,1736863855656,-500.0,0.00022739,3]
[348896518,1736863855665,-500.0,0.00022739,3]
[348896519,1736863855674,-500.0,0.00022739,3]
[348896520,1736863855684,-500.0,0.00022739,3]
[348896521,1736863855694,-500.0,0.00022739,3]
[348896522,1736863855703,-500.0,0.00022739,3]
[348896523,1736863855713,-648.6,0.00022739,3]
[348896524,1736863855722,-976.54,0.00022739,3]
[348896525,1736863855731,-518.46063945,0.00022739,3]
[348896526,1736863855741,-800.75,0.00022739,3]
[348896527,1736863855752,-500.0,0.00022739,3]
[348896528,1736863855761,-602.56,0.00022739,3]
[348896529,1736863855772,-500.0,0.00022739,3]
[348896530,1736863855783,-500.0,0.00022739,3]
[348896531,1736863855793,-500.0,0.00022739,3]
[348896532,1736863855804,-666.37,0.00022739,3]
[348896533,1736863855814,-1167.65,0.00022739,3]
[348896534,1736863855823,-500.0,0.00022739,3]
[348896535,1736863855833,-905.35,0.00022739,3]
[348896536,1736863855843,-500.0,0.00022739,3]
[348896537,1736863855853,-500.0,0.00022739,3]
[348896538,1736863855863,-1155.85,0.00022739,3]
[348896539,1736863855872,-862.62,0.00022739,3]
[348896540,1736863855882,-500.0,0.00022739,3]
[348896541,1736863855891,-798.75,0.00022739,3]
[348896542,1736863855901,-500.0,0.00022739,3]
[348896543,1736863855911,-1111.58,0.00022739,3]
[348896544,1736863855920,-500.0,0.00022739,3]
[348896545,1736863855930,-938.24,0.00022739,3]
[348896546,1736863855939,-500.0,0.00022739,3]
[348896547,1736863855949,-500.0,0.00022739,3]
[348896548,1736863855958,-501.06,0.00022739,3]
[348896549,1736863855968,-500.0,0.00022739,3]
[348896550,1736863855978,-500.0,0.00022739,3]
[348896551,1736863855987,-500.0,0.00022739,3]
[348896552,1736863855999,-500.0,0.00022739,3]
[348896553,1736863856009,-683.74,0.00022739,3]
[348896554,1736863856019,-466.43045725,0.00022739,3]
[348896555,1736863856029,-612.28,0.00022739,3]
[348896556,1736863856038,-500.0,0.00022739,3]
[348896557,1736863856048,-500.0,0.00022739,3]
[348896558,1736863856058,-639.85,0.00022739,3]
[348896559,1736863856067,-849.75,0.00022739,3]
[348896560,1736863856077,-848.14,0.00022739,3]
[348896561,1736863856087,-646.88,0.00022739,3]
[348896562,1736863856096,-500.0,0.00022739,3]
[348896563,1736863856105,-765.36,0.00022739,3]
[348896564,1736863856115,-500.0,0.00022739,3]
[348896565,1736863856124,-888.92,0.00022739,3]
[348896566,1736863856134,-500.0,0.00022739,3]
[348896567,1736863856144,-500.0,0.00022739,3]
[348896568,1736863856154,-2567.75,0.00022739,3]
[348896569,1736863856163,-500.0,0.00022739,3]
[348896570,1736863856172,-500.0,0.00022739,3]
[348896571,1736863856182,-500.0,0.00022739,3]
[348896572,1736863856191,-500.0,0.00022739,3]
[348896573,1736863856201,-500.0,0.00022739,3]
[348896574,1736863856210,-629.41,0.00022739,3]
[348896575,1736863856220,-500.0,0.00022739,3]
[348896576,1736863856230,-500.0,0.00022739,3]
[348896577,1736863856239,-1413.47,0.00022739,3]
[348896578,1736863856248,-500.0,0.00022739,3]
[348896579,1736863856258,-584.19,0.00022739,3]
[348896580,1736863856267,-500.0,0.00022739,3]
[348896581,1736863856276,-1126.87,0.00022739,3]
[348896582,1736863856286,-500.0,0.00022739,3]
[348896583,1736863856295,-500.0,0.00022739,3]
[348896584,1736863856305,-505.27,0.00022739,3]
[348896585,1736863856314,-500.0,0.00022739,3]
[348896586,1736863856327,-329.94351446,0.00022739,3]
[348896587,1736863936269,330.0,0.00024,30]
[348896591,1736864489943,165.495375,0.00013973,2]
[348896593,1736864620294,500.0,0.00025,120]
[348896597,1736864839147,-526.57946774,0.00019693,14]
[348896611,1736864946149,-3389.55335351,0.00016,2]
[348896654,1736865032794,-51.25373892,0.00016,2]
[348896656,1736865032804,-376.39147174,0.000188,2]
[348896658,1736865032815,-28.35403769,0.000188,2]
[348896660,1736865032825,-3184.73169802,0.00020758,2]
[348896664,1736865032866,-462.1105,0.00020758,2]
[348896667,1736865032878,-45.66834828,0.00020758,2]
[348896670,1736865032888,-227.451001,0.00020862,2]
[348896672,1736865032897,-477.61,0.000216,2]
[348896675,1736865032906,-422.92199749,0.00021816,2]
[348896676,1736865032916,-322.41309038,0.00021817,2]
[348896678,1736865032925,-1000.0,0.00021892,2]
[348896680,1736865032934,-441.5251945,0.000219,2]
[348896682,1736865032943,-382.96927055,0.000219,2]
[348896684,1736865032953,-300.0,0.00021915,2]
[348896686,1736865032962,-151.96,0.00021916,2]
[348896688,1736865032972,-500.0,0.00021916,2]
[348896690,1736865032981,-500.0,0.00021916,2]
[348896692,1736865032991,-408.35324489,0.00021916,2]
[348896694,1736865033000,-500.0,0.00021916,2]
[348896696,1736865033010,-500.0,0.00021916,2]
[348896698,1736865033019,-500.0,0.00021916,2]
[348896700,1736865033029,-500.0,0.00021916,2]
[348896702,1736865033038,-177.30438372,0.00021916,2]
[348896704,1736865033048,-155.5709323,0.00021916,2]
[348896706,1736865033058,-571.5204621,0.00021916,2]
[348896708,1736865033068,-451.6304251,0.00021916,2]
[348896710,1736865033077,-500.0,0.00021916,2]
[348896712,1736865033088,-500.0,0.00021916,2]
[348896714,1736865033098,-500.0,0.00021916,2]
[348896716,1736865033107,-500.0,0.00021916,2]
[348896718,1736865033117,-500.0,0.00021916,2]
[348896720,1736865033127,-408.35324489,0.00021916,2]
[348896722,1736865033140,-500.0,0.00021916,2]
[348896724,1736865033150,-500.0,0.00021916,2]
[348896726,1736865033160,-500.0,0.00021916,2]
[348896728,1736865033170,-500.0,0.00021916,2]
[348896730,1736865033180,-412.45629019,0.00021916,2]
[348896732,1736865033190,-500.0,0.00021916,2]
[348896734,1736865033199,-500.0,0.00021916,2]
[348896736,1736865033209,-511.52977405,0.00021916,2]
[348896738,1736865033219,-500.0,0.00021916,2]
[348896740,1736865033228,-157.13896549,0.00021916,2]
[348896742,1736865033238,-500.0,0.00021916,2]
[348896744,1736865033248,-500.0,0.00021916,2]
[348896746,1736865033258,-500.0,0.00021916,2]
[348896748,1736865033267,-500.0,0.00021916,2]
[348896750,1736865033277,-500.0,0.00021916,2]
[348896752,1736865033286,-500.0,0.00021916,2]
[348896754,1736865033296,-500.0,0.00021916,2]
[348896756,1736865033306,-500.0,0.00021916,2]
[348896758,1736865033316,-500.0,0.00021916,2]
[348896759,1736865033324,-500.0,0.00021916,2]
[348896760,1736865033334,-649.46589931,0.00021916,2]
[348896761,1736865033346,-407.31552695,0.00021916,2]
[348896762,1736865033359,-117.86728253,0.00021916,2]
[348896763,1736865033369,-178.398,0.00021916,2]
[348896764,1736865033378,-151.96,0.00021917,2]
[348896765,1736865033388,-528.37114165,0.00021917,3]
[348896766,1736865033398,-500.0,0.00021917,3]
[348896767,1736865033407,-503.18845023,0.00021917,3]
[348896768,1736865033417,-500.0,0.00021917,3]
[348896769,1736865033426,-500.44644195,0.00021917,3]
[348896770,1736865033435,-614.57281206,0.00021917,3]
[348896771,1736865033445,-204.20621423,0.00021917,3]
[348896772,1736865033454,-500.0,0.00021917,3]
[348896773,1736865033463,-500.0,0.00021917,3]
[348896774,1736865033472,-500.0,0.00021917,3]
[348896775,1736865033481,-500.0,0.00021917,3]
[348896776,1736865033491,-153.210539,0.00021917,2]
[348896777,1736865033501,-440.51011835,0.00021917,3]
[348896778,1736865033514,-59.48988165,0.00021917,3]
[348896779,1736865033523,-500.0,0.00021917,3]
[348896780,1736865033532,-500.0,0.00021917,3]
[348896782,1736865033542,-500.0,0.00021917,3]
[348896783,1736865033551,-500.0,0.00021917,3]
[348896785,1736865033563,-500.0,0.00021917,3]
[348896787,1736865033573,-500.0,0.00021917,3]
[348896789,1736865033582,-500.48139971,0.00021917,3]
[348896791,1736865033597,-500.0,0.00021917,3]
[348896793,1736865033607,-500.0,0.00021917,3]
[348896795,1736865033617,-500.0,0.00021917,3]
[348896797,1736865033626,-267.14836524,0.00021917,3]
[348896798,1736865033635,-500.0,0.00021917,3]
[348896799,1736865033646,-500.78599156,0.00021917,3]
[348896800,1736865033656,-614.39482546,0.00021917,3]
[348896801,1736865033666,-500.0,0.00021917,2]
[348896802,1736865033676,-497.93734546,0.00021917,2]
[348896803,1736865033686,-500.0,0.00021917,3]
[348896804,1736865033696,-500.0,0.00021917,3]
[348896805,1736865033706,-500.0,0.00021917,3]
[348896806,1736865033716,-500.56880614,0.00021917,3]
[348896807,1736865033727,-500.0,0.00021917,3]
[348896808,1736865033738,-500.0,0.00021917,3]
[348896809,1736865033747,-500.0,0.00021917,3]
[348896810,1736865033758,-500.74344555,0.00021917,3]
[348896811,1736865033768,-500.51000536,0.00021917,3]
[348896812,1736865033778,-500.80498737,0.00021917,3]
[348896813,1736865033787,-500.0,0.00021917,3]
[348896814,1736865033797,-500.0,0.00021917,3]
[348896815,1736865033806,-500.0,0.00021917,3]
[348896816,1736865033816,-500.0,0.00021917,3]
[348896817,1736865033825,-214.84910258,0.00021917,3]
[348896818,1736865033839,-5178.0,0.00021917,3]
[348896819,1736865033848,-500.0,0.00021917,3]
[348896820,1736865033858,-500.0,0.00021917,3]
[348896821,1736865033867,-500.0,0.00021917,3]
[348896822,1736865033877,-500.0,0.00021917,3]
[348896823,1736865033887,-594.89545264,0.00021917,3]
[348896824,1736865033897,-428.74261144,0.00021917,3]
[348896825,1736865033907,-500.0,0.00021917,3]
[348896826,1736865033916,-500.0,0.00021917,3]
[348896827,1736865033926,-500.0,0.00021917,3]
[348896828,1736865033936,-500.0,0.00021917,2]
[348896829,1736865033945,-500.0,0.00021917,3]
[348896830,1736865033954,-500.0,0.00021917,3]
[348896831,1736865033964,-500.0,0.00021917,3]
[348896832,1736865033973,-500.0,0.00021917,3]
[348896833,1736865033983,-500.0,0.00021917,3]
[348896834,1736865033992,-500.0,0.00021917,3]
[348896835,1736865034002,-500.0,0.00021917,3]
[348896836,1736865034012,-165.61873205,0.00021917,3]
[348896837,1736865034021,-500.64756074,0.00021917,3]
[348896838,1736865034031,-500.0,0.00021917,3]
[348896839,1736865034041,-500.0,0.00021917,3]
[348896840,1736865034051,-500.0,0.00021917,3]
[348896841,1736865034064,-500.0,0.00021917,3]
[348896842,1736865034074,-500.0,0.00021917,3]
[348896843,1736865034084,-500.0,0.00021917,3]
[348896844,1736865034095,-500.0,0.00021917,3]
[348896845,1736865034105,-500.0,0.00021917,3]
[348896846,1736865034115,-571.62281696,0.00021917,2]
[348896847,1736865034125,-500.0,0.00021917,3]
[348896848,1736865034135,-525.08447721,0.00021917,3]
[348896849,1736865034146,-513.78033632,0.00021917,3]
[348896850,1736865034156,-500.0,0.00021917,3]
[348896851,1736865034167,-197.08290386,0.00021917,3]
[348896852,1736865034178,-500.0,0.00021917,3]
[348896853,1736865034191,-500.0,0.00021917,3]
[348896854,1736865034201,-500.0,0.00021917,3]
[348896855,1736865034210,-500.0,0.00021917,3]
[348896856,1736865034220,-500.0,0.00021917,3]
[348896857,1736865034230,-251.29021777,0.00021917,3]
[348896858,1736865034239,-500.0,0.00021917,3]
[348896859,1736865034249,-3581.55,0.00021917,3]
[348896860,1736865034259,-500.0,0.00021917,3]
[348896861,1736865034268,-500.0,0.00021917,3]
[348896862,1736865034278,-500.0,0.00021917,3]
[348896863,1736865034288,-500.0,0.00021917,3]
[348896864,1736865034297,-500.0,0.00021917,3]
[348896865,1736865034307,-500.0,0.00021917,3]
[348896866,1736865034317,-500.0,0.00021917,3]
[348896867,1736865034326,-500.0,0.00021917,3]
[348896868,1736865034338,-500.0,0.00021917,3]
[348896869,1736865034348,-500.0,0.00021917,3]
[348896870,1736865034358,-500.0,0.00021917,3]
[348896871,1736865034368,-500.0,0.00021917,3]
[348896872,1736865034378,-238.67660879,0.00021917,3]
[348896873,1736865034389,-500.0,0.00021917,3]
[348896874,1736865034402,-500.0,0.00021917,3]
[348896875,1736865034413,-688.92,0.00021917,3]
[348896876,1736865034423,-500.0,0.00021917,3]
[348896877,1736865034433,-500.0,0.00021917,3]
[348896878,1736865034442,-500.0,0.00021917,3]
[348896879,1736865034452,-500.0,0.00021917,3]
[348896880,1736865034462,-501.03632925,0.00021917,3]
[348896881,1736865034471,-501.16352778,0.00021917,3]
[348896882,1736865034481,-500.0,0.00021917,3]
[348896883,1736865034491,-500.0,0.00021917,3]
[348896884,1736865034500,-500.0,0.00021917,3]
[348896885,1736865034510,-500.0,0.00021917,3]
[348896886,1736865034519,-500.0,0.00021917,3]
[348896887,1736865034530,-500.0,0.00021917,3]
[348896888,1736865034539,-524.35,0.00021917,3]
[348896889,1736865034549,-500.0,0.00021917,3]
[348896890,1736865034559,-500.0,0.00021917,3]
[348896891,1736865034569,-494.14944118,0.00021917,3]
[348896892,1736865034579,-565.30297747,0.00021917,3]
[348896893,1736865034591,-500.0,0.00021917,3]
[348896894,1736865034602,-24.51959111,0.00021917,3]
[348896895,1736865034619,-478.42476426,0.00021917,3]
[348896896,1736865034629,-500.0,0.00021917,3]
[348896897,1736865034638,-500.0,0.00021917,3]
[348896898,1736865034647,-500.0,0.00021917,3]
[348896899,1736865034657,-500.0,0.00021917,3]
[348896900,1736865034666,-500.0,0.00021917,3]
[348896901,1736865034675,-500.0,0.00021917,3]
[348896902,1736865034685,-500.0,0.00021917,3]
[348896903,1736865034695,-500.0,0.00021917,3]
[348896904,1736865034704,-500.0,0.00021917,3]
[348896905,1736865034718,-500.0,0.00021917,3]
[348896906,1736865034728,-501.29567966,0.00021917,3]
[348896907,1736865034738,-500.0,0.00021917,3]
[348896908,1736865034747,-500.0,0.00021917,3]
[348896909,1736865034757,-500.0,0.00021917,3]
[348896910,1736865034767,-644.24592478,0.00021917,3]
[348896911,1736865034776,-500.00000001,0.00021917,3]
[348896912,1736865034786,-500.0,0.00021917,3]
[348896913,1736865034795,-500.0,0.00021917,3]
[348896914,1736865034806,-500.0,0.00021917,3]
[348896915,1736865034816,-500.0,0.00021917,3]
[348896916,1736865034826,-500.0,0.00021917,3]
[348896917,1736865034836,-212.58890195,0.00021917,3]
[348896918,1736865034847,-500.74167919,0.00021917,3]
[348896919,1736865034857,-502.75302765,0.00021917,3]
[348896920,1736865034867,-500.0,0.00021917,3]
[348896921,1736865034877,-500.0,0.00021917,3]
[348896922,1736865034887,-500.0,0.00021917,3]
[348896923,1736865034896,-500.0,0.00021917,3]
[348896924,1736865034905,-500.0,0.00021917,3]
[348896925,1736865034915,-500.0,0.00021917,3]
[348896926,1736865034925,-500.0,0.00021917,3]
[348896927,1736865034934,-500.0,0.00021917,3]
[348896928,1736865034944,-500.0,0.00021917,3]
[348896929,1736865034953,-501.03021443,0.00021917,3]
[348896930,1736865034963,-500.0,0.00021917,3]
[348896931,1736865034973,-521.74,0.00021917,3]
[348896932,1736865034983,-500.0,0.00021917,3]
[348896933,1736865034992,-506.31245286,0.00021917,3]
[348896934,1736865035002,-500.0,0.00021917,3]
[348896935,1736865035011,-778.71,0.00021917,3]
[348896936,1736865035021,-500.0,0.00021917,3]
[348896937,1736865035031,-500.0,0.00021917,3]
[348896938,1736865035041,-500.0,0.00021917,3]
[348896939,1736865035050,-500.0,0.00021917,3]
[348896940,1736865035060,-500.0,0.00021917,3]
[348896941,1736865035069,-500.0,0.00021917,3]
[348896942,1736865035079,-500.0,0.00021917,3]
[348896943,1736865035090,-423.2648378,0.00021917,3]
[348896944,1736865035100,-500.0,0.00021917,3]
[348896945,1736865035110,-520.19320106,0.00021917,3]
[348896946,1736865035119,-500.0,0.00021917,3]
[348896947,1736865035128,-500.0,0.00021917,3]
[348896948,1736865035138,-500.58115671,0.00021917,3]